[Event "Titled Tuesday Blitz September 21 2021"]
[White "Plotkin, Victor"]
[Black "Maly, Alexey"]
[WhiteFideId "2606674"]
[BlackFideId "14103184"]
[WhiteElo "2310"]
[BlackElo "2250"]
[Result "0-1"]
[Round "05"]
[TimeControl "180+1"]
[Date "2021.09.21"]
[WhiteClock "0:00:06"]
[BlackClock "0:02:08"]

1. e4 {[%clk 0:01:42]}  c6 {[%clk 0:03:00]} 2. d4 {[%clk 0:01:41]}  d5 {[%clk 0:03:01]} 3. Nc3 {[%clk 0:01:40]}  dxe4 {[%clk 0:03:01]} 4. Nxe4 {[%clk 0:01:40]}  Bf5 {[%clk 0:03:01]} 5. Ng3 {[%clk 0:01:40]}  Bg6 {[%clk 0:03:01]} 6. Nf3 {[%clk 0:01:41]}  Nd7 {[%clk 0:03:01]} 7. h4 {[%clk 0:01:39]}  h6 {[%clk 0:03:01]} 8. h5 {[%clk 0:01:40]}  Bh7 {[%clk 0:03:01]} 9. Bd3 {[%clk 0:01:41]}  Bxd3 {[%clk 0:03:01]} 10. Qxd3 {[%clk 0:01:41]}  e6 {[%clk 0:03:01]} 11. Bf4 {[%clk 0:01:41]}  Ngf6 {[%clk 0:03:02]} 12. O-O-O {[%clk 0:01:41]}  Be7 {[%clk 0:03:02]} 13. Ne5 {[%clk 0:01:40]}  O-O {[%clk 0:02:58]} 14. Nxd7 {[%clk 0:01:39]}  Qxd7 {[%clk 0:02:57]} 15. Ne4 {[%clk 0:01:39]}  Nxe4 {[%clk 0:02:57]} 16. Qxe4 {[%clk 0:01:40]}  Qd5 {[%clk 0:02:57]} 17. Qxd5 {[%clk 0:01:39]}  cxd5 {[%clk 0:02:57]} 18. c3 {[%clk 0:01:37]}  Rac8 {[%clk 0:02:57]} 19. Kd2 {[%clk 0:01:36]}  b5 {[%clk 0:02:57]} 20. Kd3 {[%clk 0:01:37]}  a5 {[%clk 0:02:56]} 21. Bd2 {[%clk 0:01:31]}  Rc6 {[%clk 0:02:55]} 22. g4 {[%clk 0:01:31]}  Rfc8 {[%clk 0:02:54]} 23. f4 {[%clk 0:01:31]}  b4 {[%clk 0:02:52]} 24. Rc1 {[%clk 0:01:23]}  bxc3 {[%clk 0:02:50]} 25. Rxc3 {[%clk 0:01:21]}  Rxc3+ {[%clk 0:02:47]} 26. Bxc3 {[%clk 0:01:21]}  a4 {[%clk 0:02:47]} 27. Rc1 {[%clk 0:01:15]}  Rb8 {[%clk 0:02:42]} 28. Rb1 {[%clk 0:01:14]}  Bd6 {[%clk 0:02:42]} 29. Bd2 {[%clk 0:01:00]}  g6 {[%clk 0:02:38]} 30. hxg6 {[%clk 0:00:59]}  fxg6 {[%clk 0:02:38]} 31. b4 {[%clk 0:00:59]}  axb3 {[%clk 0:02:37]} 32. axb3 {[%clk 0:00:57]}  Kf7 {[%clk 0:02:36]} 33. b4 {[%clk 0:00:43]}  h5 {[%clk 0:02:32]} 34. gxh5 {[%clk 0:00:41]}  gxh5 {[%clk 0:02:33]} 35. b5 {[%clk 0:00:41]}  Kf6 {[%clk 0:02:29]} 36. Ke3 {[%clk 0:00:31]}  Kf5 {[%clk 0:02:28]} 37. Kf3 {[%clk 0:00:31]}  h4 {[%clk 0:02:27]} 38. b6 {[%clk 0:00:24]}  Rb7 {[%clk 0:02:24]} 39. Rg1 {[%clk 0:00:14]}  Rxb6 {[%clk 0:02:22]} 40. Rg5+ {[%clk 0:00:14]}  Kf6 {[%clk 0:02:21]} 41. Kg4 {[%clk 0:00:14]}  Rb2 {[%clk 0:02:15]} 42. Be1 {[%clk 0:00:13]}  h3 {[%clk 0:02:08]} 43. Kxh3 {[%clk 0:00:07]}  Bxf4 {[%clk 0:02:08]} 44. Rg4 {[%clk 0:00:06]}  Rh2# {[%clk 0:02:08]} 0-1


[Site "https://www.chess.com"]

[Event "Titled Tuesday Blitz September 21 2021"]
[White "Popilski, Gil"]
[Black "Timmermans, Mark"]
[WhiteFideId "2809060"]
[BlackFideId "1026399"]
[WhiteElo "2537"]
[BlackElo "2460"]
[Result "0-1"]
[Round "05"]
[TimeControl "180+1"]
[Date "2021.09.21"]
[WhiteClock "0:00:05"]
[BlackClock "0:00:20"]

1. e4 {[%clk 0:03:00]}  e5 {[%clk 0:02:57]} 2. Nf3 {[%clk 0:02:59]}  Nc6 {[%clk 0:02:56]} 3. Bb5 {[%clk 0:02:58]}  f5 {[%clk 0:02:55]} 4. d3 {[%clk 0:02:57]}  fxe4 {[%clk 0:02:55]} 5. dxe4 {[%clk 0:02:56]}  Nf6 {[%clk 0:02:56]} 6. Qd3 {[%clk 0:02:56]}  d6 {[%clk 0:02:56]} 7. c4 {[%clk 0:02:45]}  Be7 {[%clk 0:02:54]} 8. Nc3 {[%clk 0:02:40]}  O-O {[%clk 0:02:54]} 9. Nd5 {[%clk 0:02:35]}  Nxd5 {[%clk 0:02:41]} 10. cxd5 {[%clk 0:02:28]}  Nb8 {[%clk 0:02:42]} 11. O-O {[%clk 0:02:26]}  a6 {[%clk 0:02:36]} 12. Bc4 {[%clk 0:02:22]}  Nd7 {[%clk 0:02:36]} 13. a4 {[%clk 0:02:21]}  Qe8 {[%clk 0:02:29]} 14. Nd2 {[%clk 0:02:08]}  Bg5 {[%clk 0:02:08]} 15. a5 {[%clk 0:02:04]}  Nf6 {[%clk 0:01:59]} 16. Re1 {[%clk 0:01:52]}  Qg6 {[%clk 0:01:47]} 17. Nf1 {[%clk 0:01:45]}  Bxc1 {[%clk 0:01:45]} 18. Raxc1 {[%clk 0:01:43]}  Nh5 {[%clk 0:01:46]} 19. Ng3 {[%clk 0:01:41]}  Nf4 {[%clk 0:01:42]} 20. Qe3 {[%clk 0:01:38]}  h5 {[%clk 0:01:42]} 21. Bf1 {[%clk 0:01:24]}  h4 {[%clk 0:01:37]} 22. Nf5 {[%clk 0:01:23]}  Bxf5 {[%clk 0:01:37]} 23. exf5 {[%clk 0:01:18]}  Qxf5 {[%clk 0:01:38]} 24. Rxc7 {[%clk 0:01:14]}  Rf7 {[%clk 0:01:22]} 25. Rxf7 {[%clk 0:01:06]}  Qxf7 {[%clk 0:01:23]} 26. Bc4 {[%clk 0:01:01]}  Rc8 {[%clk 0:01:22]} 27. b3 {[%clk 0:01:00]}  Rc5 {[%clk 0:01:06]} 28. g3 {[%clk 0:00:46]}  hxg3 {[%clk 0:00:46]} 29. hxg3 {[%clk 0:00:47]}  Qg6 {[%clk 0:00:46]} 30. Rd1 {[%clk 0:00:17]}  Rxa5 {[%clk 0:00:37]} 31. Qb6 {[%clk 0:00:15]}  Ra2 {[%clk 0:00:37]} 32. Qd8+ {[%clk 0:00:14]}  Kh7 {[%clk 0:00:34]} 33. Qh4+ {[%clk 0:00:14]}  Qh5 {[%clk 0:00:32]} 34. Qxh5+ {[%clk 0:00:09]}  Nxh5 {[%clk 0:00:33]} 35. Kg2 {[%clk 0:00:09]}  Nf6 {[%clk 0:00:31]} 36. Bd3+ {[%clk 0:00:09]}  Kh6 {[%clk 0:00:28]} 37. Bf5 {[%clk 0:00:09]}  Kg5 {[%clk 0:00:25]} 38. Be6 {[%clk 0:00:08]}  Rb2 {[%clk 0:00:24]} 39. Rd3 {[%clk 0:00:07]}  e4 {[%clk 0:00:20]} 40. Re3 {[%clk 0:00:06]}  a5 {[%clk 0:00:20]} 41. Kg1 {[%clk 0:00:04]}  b5 {[%clk 0:00:20]} 42. f3 {[%clk 0:00:05]}  exf3 {[%clk 0:00:19]} 43. Rxf3 {[%clk 0:00:05]}  a4 {[%clk 0:00:19]} 44. bxa4 {[%clk 0:00:05]}  bxa4 {[%clk 0:00:19]} 45. Rf5+ {[%clk 0:00:05]}  Kg6 {[%clk 0:00:19]} 46. Rf4 {[%clk 0:00:06]}  a3 {[%clk 0:00:19]} 47. Bf5+ {[%clk 0:00:05]}  Kf7 {[%clk 0:00:19]} 48. Ra4 {[%clk 0:00:06]}  a2 {[%clk 0:00:19]} 49. Ra7+ {[%clk 0:00:07]}  Kf8 {[%clk 0:00:18]} 50. Ra8+ {[%clk 0:00:06]}  Ke7 {[%clk 0:00:19]} 51. Ra7+ {[%clk 0:00:06]}  Kd8 {[%clk 0:00:19]} 52. Ra8+ {[%clk 0:00:06]}  Kc7 {[%clk 0:00:20]} 53. Rc8+ {[%clk 0:00:05]}  Kb7 {[%clk 0:00:20]} 0-1


[Site "https://www.chess.com"]

[Event "Titled Tuesday Blitz September 21 2021"]
[White "Putnam, Liam"]
[Black "Dzhaparov, Medet"]
[WhiteFideId "30938279"]
[BlackFideId "13803689"]
[WhiteElo "2035"]
[BlackElo "1702"]
[Result "1-0"]
[Round "05"]
[TimeControl "180+1"]
[Date "2021.09.21"]
[WhiteClock "0:00:15"]
[BlackClock "0:00:01"]

1. b3 {[%clk 0:03:00]}  Nf6 {[%clk 0:02:56]} 2. Bb2 {[%clk 0:02:52]}  g6 {[%clk 0:02:56]} 3. Nf3 {[%clk 0:02:48]}  Bg7 {[%clk 0:02:56]} 4. g3 {[%clk 0:02:41]}  O-O {[%clk 0:02:56]} 5. Bg2 {[%clk 0:02:41]}  d5 {[%clk 0:02:50]} 6. O-O {[%clk 0:02:40]}  c5 {[%clk 0:02:49]} 7. c4 {[%clk 0:02:33]}  dxc4 {[%clk 0:02:20]} 8. bxc4 {[%clk 0:02:29]}  Nc6 {[%clk 0:02:20]} 9. d3 {[%clk 0:02:29]}  Bg4 {[%clk 0:02:06]} 10. Nbd2 {[%clk 0:02:28]}  Qd7 {[%clk 0:02:03]} 11. Rb1 {[%clk 0:02:20]}  Rad8 {[%clk 0:02:02]} 12. Ng5 {[%clk 0:01:47]}  Qc8 {[%clk 0:01:02]} 13. h3 {[%clk 0:01:31]}  Bf5 {[%clk 0:00:56]} 14. g4 {[%clk 0:01:30]}  Bd7 {[%clk 0:00:47]} 15. Nde4 {[%clk 0:01:21]}  Nxe4 {[%clk 0:00:45]} 16. Nxe4 {[%clk 0:01:17]}  Bxb2 {[%clk 0:00:44]} 17. Rxb2 {[%clk 0:01:18]}  b6 {[%clk 0:00:44]} 18. Qd2 {[%clk 0:01:18]}  f6 {[%clk 0:00:39]} 19. Qh6 {[%clk 0:01:17]}  Be6 {[%clk 0:00:38]} 20. Nc3 {[%clk 0:01:14]}  Ne5 {[%clk 0:00:33]} 21. f4 {[%clk 0:01:10]}  Nf7 {[%clk 0:00:26]} 22. Qh4 {[%clk 0:01:11]}  f5 {[%clk 0:00:26]} 23. gxf5 {[%clk 0:01:04]}  gxf5 {[%clk 0:00:22]} 24. Qxe7 {[%clk 0:01:02]}  Rfe8 {[%clk 0:00:15]} 25. Qf6 {[%clk 0:00:56]}  Rd6 {[%clk 0:00:14]} 26. Nb5 {[%clk 0:00:49]}  Rd7 {[%clk 0:00:09]} 27. Rf3 {[%clk 0:00:49]}  a6 {[%clk 0:00:08]} 28. Rg3+ {[%clk 0:00:50]}  Kf8 {[%clk 0:00:08]} 29. Nc3 {[%clk 0:00:39]}  Rd6 {[%clk 0:00:08]} 30. Qg7+ {[%clk 0:00:30]}  Ke7 {[%clk 0:00:09]} 31. Nd5+ {[%clk 0:00:31]}  Bxd5 {[%clk 0:00:06]} 32. Bxd5 {[%clk 0:00:32]}  Rxd5 {[%clk 0:00:06]} 33. cxd5 {[%clk 0:00:30]}  Qd7 {[%clk 0:00:05]} 34. Rxb6 {[%clk 0:00:29]}  Qxd5 {[%clk 0:00:05]} 35. Qf6+ {[%clk 0:00:28]}  Kd7 {[%clk 0:00:05]} 36. Rg7 {[%clk 0:00:29]}  Rf8 {[%clk 0:00:04]} 37. Rb7+ {[%clk 0:00:14]}  Qxb7 {[%clk 0:00:04]} 38. Rxf7+ {[%clk 0:00:14]}  Rxf7 {[%clk 0:00:04]} 39. Qxf7+ {[%clk 0:00:15]}  Kc6 {[%clk 0:00:05]} 40. Qxb7+ {[%clk 0:00:14]}  Kxb7 {[%clk 0:00:06]} 41. Kf2 {[%clk 0:00:14]}  Kb6 {[%clk 0:00:05]} 42. Ke3 {[%clk 0:00:14]}  Kb5 {[%clk 0:00:06]} 43. Kd2 {[%clk 0:00:14]}  Kb4 {[%clk 0:00:06]} 44. e4 {[%clk 0:00:15]}  fxe4 {[%clk 0:00:01]} 45. dxe4 {[%clk 0:00:16]}  c4 {[%clk 0:00:02]} 46. f5 {[%clk 0:00:14]}  Kc5 {[%clk 0:00:02]} 47. Kc3 {[%clk 0:00:14]}  Kd6 {[%clk 0:00:01]} 48. Kxc4 {[%clk 0:00:15]} 1-0


[Site "https://www.chess.com"]

[Event "Titled Tuesday Blitz September 21 2021"]
[White "Salinas Herrera, Pablo"]
[Black "Schrik, Rachid"]
[WhiteFideId "3407128"]
[BlackFideId "1009818"]
[WhiteElo "2541"]
[BlackElo "2070"]
[Result "1-0"]
[Round "05"]
[TimeControl "180+1"]
[Date "2021.09.21"]
[WhiteClock "0:00:23"]
[BlackClock "0:00:01"]

1. e4 {[%clk 0:02:58]}  c5 {[%clk 0:02:59]} 2. Nf3 {[%clk 0:02:58]}  Nc6 {[%clk 0:02:58]} 3. Bb5 {[%clk 0:02:58]}  Nf6 {[%clk 0:02:58]} 4. Bxc6 {[%clk 0:02:57]}  dxc6 {[%clk 0:02:57]} 5. d3 {[%clk 0:02:57]}  Bg4 {[%clk 0:02:54]} 6. Nbd2 {[%clk 0:02:57]}  Nd7 {[%clk 0:02:47]} 7. h3 {[%clk 0:02:55]}  Bh5 {[%clk 0:02:47]} 8. Qe2 {[%clk 0:02:54]}  e5 {[%clk 0:02:46]} 9. g4 {[%clk 0:02:54]}  Bg6 {[%clk 0:02:47]} 10. Nc4 {[%clk 0:02:54]}  Qc7 {[%clk 0:02:46]} 11. Bd2 {[%clk 0:02:54]}  Be7 {[%clk 0:02:31]} 12. O-O-O {[%clk 0:02:54]}  a5 {[%clk 0:02:28]} 13. Ne3 {[%clk 0:02:53]}  a4 {[%clk 0:02:22]} 14. Nf5 {[%clk 0:02:50]}  a3 {[%clk 0:02:01]} 15. b3 {[%clk 0:02:48]}  Bf8 {[%clk 0:01:49]} 16. Kb1 {[%clk 0:02:46]}  f6 {[%clk 0:01:48]} 17. h4 {[%clk 0:02:45]}  Bf7 {[%clk 0:01:48]} 18. g5 {[%clk 0:02:43]}  Bh5 {[%clk 0:01:24]} 19. Qe3 {[%clk 0:02:29]}  O-O-O {[%clk 0:00:55]} 20. Bc1 {[%clk 0:02:28]}  Qa5 {[%clk 0:00:53]} 21. Rdg1 {[%clk 0:02:25]}  c4 {[%clk 0:00:47]} 22. Nd2 {[%clk 0:01:36]}  cxb3 {[%clk 0:00:36]} 23. axb3 {[%clk 0:01:28]}  a2+ {[%clk 0:00:34]} 24. Ka1 {[%clk 0:01:25]}  Bc5 {[%clk 0:00:27]} 25. Nc4 {[%clk 0:01:16]}  Qa7 {[%clk 0:00:23]} 26. Qh3 {[%clk 0:01:04]}  Bxf2 {[%clk 0:00:17]} 27. Rf1 {[%clk 0:00:53]}  Bc5 {[%clk 0:00:16]} 28. Bb2 {[%clk 0:00:48]}  fxg5 {[%clk 0:00:13]} 29. Nxg7 {[%clk 0:00:45]}  Bg6 {[%clk 0:00:12]} 30. h5 {[%clk 0:00:44]}  Be8 {[%clk 0:00:11]} 31. Nxe5 {[%clk 0:00:24]}  Kb8 {[%clk 0:00:10]} 32. Nxe8 {[%clk 0:00:23]}  Rhxe8 {[%clk 0:00:06]} 33. Nxd7+ {[%clk 0:00:24]}  Rxd7 {[%clk 0:00:01]} 34. Qxd7 {[%clk 0:00:24]}  Rc8 {[%clk 0:00:01]} 35. Rf7 {[%clk 0:00:23]} 1-0


[Site "https://www.chess.com"]

[Event "Titled Tuesday Blitz September 21 2021"]
[White "Sjugirov, Sanan"]
[Black "Savchenko, Boris"]
[WhiteFideId "4189302"]
[BlackFideId "4147332"]
[WhiteElo "2654"]
[BlackElo "2543"]
[Result "1-0"]
[Round "05"]
[TimeControl "180+1"]
[Date "2021.09.21"]
[WhiteClock "0:00:17"]
[BlackClock "0:00:12"]

1. e4 {[%clk 0:03:00]}  c5 {[%clk 0:02:58]} 2. Nf3 {[%clk 0:02:52]}  d6 {[%clk 0:02:52]} 3. d4 {[%clk 0:02:47]}  cxd4 {[%clk 0:02:53]} 4. Nxd4 {[%clk 0:02:48]}  Nf6 {[%clk 0:02:54]} 5. Nc3 {[%clk 0:02:49]}  a6 {[%clk 0:02:54]} 6. Be3 {[%clk 0:02:48]}  Ng4 {[%clk 0:02:53]} 7. Bc1 {[%clk 0:02:44]}  Nf6 {[%clk 0:02:54]} 8. Be2 {[%clk 0:02:41]}  g6 {[%clk 0:02:53]} 9. Be3 {[%clk 0:02:35]}  Bg7 {[%clk 0:02:53]} 10. Qd2 {[%clk 0:02:35]}  Nc6 {[%clk 0:02:53]} 11. O-O-O {[%clk 0:02:27]}  O-O {[%clk 0:02:45]} 12. h4 {[%clk 0:02:24]}  h5 {[%clk 0:02:45]} 13. f3 {[%clk 0:02:19]}  Nxd4 {[%clk 0:02:41]} 14. Bxd4 {[%clk 0:02:18]}  b5 {[%clk 0:02:41]} 15. g4 {[%clk 0:02:01]}  hxg4 {[%clk 0:02:32]} 16. h5 {[%clk 0:01:56]}  Nxh5 {[%clk 0:01:27]} 17. Bxg7 {[%clk 0:01:54]}  Nxg7 {[%clk 0:01:18]} 18. Qh6 {[%clk 0:01:50]}  f5 {[%clk 0:01:17]} 19. Qxg6 {[%clk 0:01:44]}  Qe8 {[%clk 0:01:03]} 20. Qh7+ {[%clk 0:01:40]}  Kf7 {[%clk 0:01:03]} 21. fxg4 {[%clk 0:01:32]}  Bd7 {[%clk 0:00:16]} 22. gxf5 {[%clk 0:01:28]}  Rh8 {[%clk 0:00:14]} 23. Qg6+ {[%clk 0:01:28]}  Kg8 {[%clk 0:00:14]} 24. Rxh8+ {[%clk 0:01:28]}  Kxh8 {[%clk 0:00:15]} 25. Rh1+ {[%clk 0:01:28]}  Kg8 {[%clk 0:00:15]} 26. Qh7+ {[%clk 0:01:28]}  Kf8 {[%clk 0:00:16]} 27. Bh5 {[%clk 0:01:01]}  Nxh5 {[%clk 0:00:16]} 28. Qh8+ {[%clk 0:00:57]}  Kf7 {[%clk 0:00:16]} 29. Qxh5+ {[%clk 0:00:58]}  Kf6 {[%clk 0:00:17]} 30. Qh6+ {[%clk 0:00:55]}  Ke5 {[%clk 0:00:16]} 31. Rd1 {[%clk 0:00:44]}  Bc6 {[%clk 0:00:14]} 32. Qe6+ {[%clk 0:00:43]}  Kf4 {[%clk 0:00:15]} 33. Ne2+ {[%clk 0:00:30]}  Ke3 {[%clk 0:00:14]} 34. Qh6+ {[%clk 0:00:20]}  Kxe2 {[%clk 0:00:12]} 35. Qf4 {[%clk 0:00:17]} 1-0


[Site "https://www.chess.com"]

[Event "Titled Tuesday Blitz September 21 2021"]
[White "Sorokin, Aleksey"]
[Black "Baskin, Robert"]
[WhiteFideId "24176460"]
[BlackFideId "24662402"]
[WhiteElo "2476"]
[BlackElo "2521"]
[Result "0-1"]
[Round "05"]
[TimeControl "180+1"]
[Date "2021.09.21"]
[WhiteClock "0:00:22"]
[BlackClock "0:00:04"]

1. d4 {[%clk 0:03:00]}  Nf6 {[%clk 0:02:57]} 2. c4 {[%clk 0:03:00]}  e6 {[%clk 0:02:57]} 3. Nf3 {[%clk 0:03:00]}  Bb4+ {[%clk 0:02:54]} 4. Nbd2 {[%clk 0:02:59]}  O-O {[%clk 0:02:53]} 5. a3 {[%clk 0:02:58]}  Be7 {[%clk 0:02:52]} 6. e4 {[%clk 0:02:55]}  d6 {[%clk 0:02:52]} 7. Be2 {[%clk 0:02:55]}  Nfd7 {[%clk 0:02:48]} 8. O-O {[%clk 0:02:54]}  e5 {[%clk 0:02:48]} 9. d5 {[%clk 0:02:51]}  a5 {[%clk 0:02:46]} 10. b3 {[%clk 0:02:46]}  Nc5 {[%clk 0:02:43]} 11. Bb2 {[%clk 0:02:40]}  f5 {[%clk 0:02:39]} 12. exf5 {[%clk 0:02:35]}  Bxf5 {[%clk 0:02:39]} 13. b4 {[%clk 0:02:35]}  Nd3 {[%clk 0:02:30]} 14. Bc3 {[%clk 0:02:34]}  Nf4 {[%clk 0:02:29]} 15. Re1 {[%clk 0:02:30]}  Qe8 {[%clk 0:02:11]} 16. Bf1 {[%clk 0:02:26]}  Qg6 {[%clk 0:02:10]} 17. Kh1 {[%clk 0:02:25]}  Nd7 {[%clk 0:02:07]} 18. c5 {[%clk 0:02:20]}  Bd3 {[%clk 0:01:27]} 19. g3 {[%clk 0:02:14]}  Bxf1 {[%clk 0:01:26]} 20. Rxf1 {[%clk 0:02:12]}  Nxd5 {[%clk 0:01:24]} 21. Qb3 {[%clk 0:02:05]}  c6 {[%clk 0:01:06]} 22. cxd6 {[%clk 0:02:04]}  Bxd6 {[%clk 0:01:05]} 23. Bb2 {[%clk 0:02:04]}  axb4 {[%clk 0:00:58]} 24. axb4 {[%clk 0:01:59]}  Rxa1 {[%clk 0:00:58]} 25. Bxa1 {[%clk 0:01:57]}  e4 {[%clk 0:00:53]} 26. Nh4 {[%clk 0:01:50]}  Qg4 {[%clk 0:00:50]} 27. Nc4 {[%clk 0:01:44]}  Qe2 {[%clk 0:00:42]} 28. Kg1 {[%clk 0:01:33]}  Bxb4 {[%clk 0:00:31]} 29. Bd4 {[%clk 0:01:22]}  Nc5 {[%clk 0:00:26]} 30. Qb2 {[%clk 0:01:07]}  Qxc4 {[%clk 0:00:23]} 31. Bxg7 {[%clk 0:01:07]}  Bc3 {[%clk 0:00:21]} 32. Bxc3 {[%clk 0:01:07]}  Nxc3 {[%clk 0:00:22]} 33. Re1 {[%clk 0:01:04]}  Nd3 {[%clk 0:00:20]} 34. Qd2 {[%clk 0:01:02]}  Qd4 {[%clk 0:00:12]} 35. Rf1 {[%clk 0:00:45]}  Qc5 {[%clk 0:00:08]} 36. Kg2 {[%clk 0:00:42]}  Kh8 {[%clk 0:00:08]} 37. f3 {[%clk 0:00:40]}  Qd4 {[%clk 0:00:08]} 38. Qh6 {[%clk 0:00:32]}  Rg8 {[%clk 0:00:07]} 39. fxe4 {[%clk 0:00:28]}  Qxe4+ {[%clk 0:00:06]} 40. Kh3 {[%clk 0:00:28]}  Nd5 {[%clk 0:00:06]} 41. Rf8 {[%clk 0:00:23]}  Qg4+ {[%clk 0:00:05]} 42. Kg2 {[%clk 0:00:22]}  Ne3+ {[%clk 0:00:04]} 43. Kg1 {[%clk 0:00:22]}  Qd1+ {[%clk 0:00:04]} 0-1


[Site "https://www.chess.com"]

[Event "Titled Tuesday Blitz September 21 2021"]
[White "Stoyanov, Tsvetan"]
[Black "Jodorcovsky Werjivker, Paulo"]
[WhiteFideId "2917173"]
[BlackFideId "3700305"]
[WhiteElo "2191"]
[BlackElo "2142"]
[Result "1-0"]
[Round "05"]
[TimeControl "180+1"]
[Date "2021.09.21"]
[WhiteClock "0:02:26"]
[BlackClock "0:02:05"]

1. e4 {[%clk 0:03:00]}  e5 {[%clk 0:02:50]} 2. Nf3 {[%clk 0:03:00]}  Nc6 {[%clk 0:02:49]} 3. d4 {[%clk 0:03:00]}  exd4 {[%clk 0:02:49]} 4. Nxd4 {[%clk 0:03:01]}  Qf6 {[%clk 0:02:48]} 5. Nxc6 {[%clk 0:03:00]}  Bc5 {[%clk 0:02:48]} 6. Qf3 {[%clk 0:02:59]}  dxc6 {[%clk 0:02:39]} 7. Nc3 {[%clk 0:02:56]}  Ne7 {[%clk 0:02:34]} 8. Qxf6 {[%clk 0:02:53]}  gxf6 {[%clk 0:02:35]} 9. Bf4 {[%clk 0:02:51]}  f5 {[%clk 0:02:29]} 10. Bxc7 {[%clk 0:02:46]}  fxe4 {[%clk 0:02:24]} 11. Nxe4 {[%clk 0:02:44]}  Bd4 {[%clk 0:02:24]} 12. O-O-O {[%clk 0:02:40]}  Bg7 {[%clk 0:02:20]} 13. Nd6+ {[%clk 0:02:36]}  Kf8 {[%clk 0:02:19]} 14. Bc4 {[%clk 0:02:37]}  Be6 {[%clk 0:02:17]} 15. Bxe6 {[%clk 0:02:34]}  fxe6 {[%clk 0:02:18]} 16. Rhe1 {[%clk 0:02:33]}  Nd5 {[%clk 0:02:18]} 17. Ba5 {[%clk 0:02:32]}  b6 {[%clk 0:02:16]} 18. Bd2 {[%clk 0:02:28]}  Ke7 {[%clk 0:02:16]} 19. Nf5+ {[%clk 0:02:28]}  Kf7 {[%clk 0:02:14]} 20. Nxg7 {[%clk 0:02:28]}  Kxg7 {[%clk 0:02:15]} 21. c4 {[%clk 0:02:28]}  Nc7 {[%clk 0:02:05]} 22. Bc3+ {[%clk 0:02:27]}  Kf7 {[%clk 0:02:05]} 23. Rd7+ {[%clk 0:02:26]} 1-0


[Site "https://www.chess.com"]

[Event "Titled Tuesday Blitz September 21 2021"]
[White "Swapnil, S. Dhopade"]
[Black "Aldokhin, Ivan"]
[WhiteFideId "5019184"]
[BlackFideId "24115720"]
[WhiteElo "2402"]
[BlackElo "2265"]
[Result "0-1"]
[Round "05"]
[TimeControl "180+1"]
[Date "2021.09.21"]
[WhiteClock "0:00:11"]
[BlackClock "0:00:07"]

1. d4 {[%clk 0:02:40]}  Nf6 {[%clk 0:02:56]} 2. c4 {[%clk 0:02:37]}  g6 {[%clk 0:02:56]} 3. Nc3 {[%clk 0:02:37]}  Bg7 {[%clk 0:02:56]} 4. e4 {[%clk 0:02:37]}  d6 {[%clk 0:02:57]} 5. f4 {[%clk 0:02:37]}  O-O {[%clk 0:02:58]} 6. Nf3 {[%clk 0:02:31]}  c5 {[%clk 0:02:58]} 7. dxc5 {[%clk 0:02:30]}  Qa5 {[%clk 0:02:48]} 8. Bd3 {[%clk 0:02:27]}  Qxc5 {[%clk 0:02:36]} 9. Qe2 {[%clk 0:02:25]}  Nc6 {[%clk 0:02:32]} 10. Be3 {[%clk 0:02:24]}  Qa5 {[%clk 0:02:29]} 11. Rc1 {[%clk 0:02:24]}  Ng4 {[%clk 0:02:23]} 12. Bd2 {[%clk 0:01:41]}  Qb6 {[%clk 0:02:01]} 13. h3 {[%clk 0:01:35]}  Nf6 {[%clk 0:01:54]} 14. Be3 {[%clk 0:01:35]}  Qa5 {[%clk 0:01:42]} 15. O-O {[%clk 0:01:36]}  Bd7 {[%clk 0:01:21]} 16. a3 {[%clk 0:01:04]}  Rac8 {[%clk 0:01:00]} 17. Nd5 {[%clk 0:00:49]}  e6 {[%clk 0:00:59]} 18. b4 {[%clk 0:00:28]}  Qd8 {[%clk 0:00:48]} 19. Nxf6+ {[%clk 0:00:29]}  Bxf6 {[%clk 0:00:46]} 20. Rfd1 {[%clk 0:00:23]}  b6 {[%clk 0:00:24]} 21. c5 {[%clk 0:00:09]}  bxc5 {[%clk 0:00:20]} 22. bxc5 {[%clk 0:00:10]}  d5 {[%clk 0:00:09]} 23. e5 {[%clk 0:00:05]}  Be7 {[%clk 0:00:06]} 24. Qf2 {[%clk 0:00:05]}  Qa5 {[%clk 0:00:05]} 25. Nd4 {[%clk 0:00:03]}  Nxd4 {[%clk 0:00:03]} 26. Bxd4 {[%clk 0:00:04]}  Bc6 {[%clk 0:00:03]} 27. Bf1 {[%clk 0:00:04]}  Rb8 {[%clk 0:00:03]} 28. Rc3 {[%clk 0:00:04]}  Qa4 {[%clk 0:00:01]} 29. Rdc1 {[%clk 0:00:04]}  Qa5 {[%clk 0:00:02]} 30. g4 {[%clk 0:00:04]}  Rb7 {[%clk 0:00:03]} 31. f5 {[%clk 0:00:05]}  Rfb8 {[%clk 0:00:03]} 32. f6 {[%clk 0:00:05]}  Bf8 {[%clk 0:00:03]} 33. Be3 {[%clk 0:00:06]}  Rb2 {[%clk 0:00:03]} 34. Qh4 {[%clk 0:00:06]}  d4 {[%clk 0:00:03]} 35. Bxd4 {[%clk 0:00:05]}  Rb1 {[%clk 0:00:03]} 36. Be3 {[%clk 0:00:05]}  Rxc1 {[%clk 0:00:03]} 37. Rxc1 {[%clk 0:00:06]}  Qxa3 {[%clk 0:00:04]} 38. Re1 {[%clk 0:00:05]}  Qc3 {[%clk 0:00:03]} 39. Qf2 {[%clk 0:00:04]}  Rb3 {[%clk 0:00:03]} 40. Bd4 {[%clk 0:00:04]}  Qg3+ {[%clk 0:00:02]} 41. Qxg3 {[%clk 0:00:04]}  Rxg3+ {[%clk 0:00:03]} 42. Kf2 {[%clk 0:00:04]}  Ra3 {[%clk 0:00:04]} 43. Rc1 {[%clk 0:00:04]}  Ra2+ {[%clk 0:00:04]} 44. Ke3 {[%clk 0:00:05]}  Bh6+ {[%clk 0:00:04]} 45. Kd3 {[%clk 0:00:05]}  Bxc1 {[%clk 0:00:05]} 46. Kc3 {[%clk 0:00:05]}  Ra3+ {[%clk 0:00:04]} 47. Kb4 {[%clk 0:00:06]}  Rf3 {[%clk 0:00:04]} 48. Bb5 {[%clk 0:00:06]}  Rf4 {[%clk 0:00:04]} 49. Bxc6 {[%clk 0:00:06]}  Rxd4+ {[%clk 0:00:04]} 50. Kc3 {[%clk 0:00:07]}  Rf4 {[%clk 0:00:03]} 51. Bb7 {[%clk 0:00:07]}  Be3 {[%clk 0:00:03]} 52. c6 {[%clk 0:00:07]}  Bd4+ {[%clk 0:00:04]} 53. Kd3 {[%clk 0:00:08]}  Bxe5 {[%clk 0:00:05]} 54. Ke3 {[%clk 0:00:08]}  Bc7 {[%clk 0:00:05]} 55. g5 {[%clk 0:00:08]}  Rb4 {[%clk 0:00:06]} 56. h4 {[%clk 0:00:09]}  Kf8 {[%clk 0:00:07]} 57. Kd3 {[%clk 0:00:10]}  Rxh4 {[%clk 0:00:07]} 58. Kc3 {[%clk 0:00:11]}  a5 {[%clk 0:00:07]} 59. Bc8 {[%clk 0:00:11]}  Rg4 {[%clk 0:00:07]} 60. Bxe6 {[%clk 0:00:11]}  fxe6 {[%clk 0:00:07]} 0-1


[Site "https://www.chess.com"]